fUSD/lending_fUSD_20260625
["ID","MTS","AMOUNT","RATE_DAILY","PERIOD"]
[426392860,1782341443000,-500.0,0.00014999,2]
[426392859,1782341443000,-500.0,0.00014999,2]
[426392861,1782341443000,-500.0,0.00014999,2]
[426392864,1782341443000,-500.0,0.00014999,2]
[426392862,1782341443000,-509.6,0.00014999,2]
[426392866,1782341443000,-500.0,0.00014999,2]
[426392865,1782341443000,-500.0,0.00014999,2]
[426392868,1782341443000,-500.0,0.00014999,2]
[426392867,1782341443000,-500.0,0.00014999,2]
[426392869,1782341443000,-500.0,0.00014999,2]
[426392870,1782341443000,-500.0,0.00014999,2]
[426392872,1782341443000,-513.71447224,0.00014999,2]
[426392871,1782341443000,-500.0,0.00014999,2]
[426392874,1782341443000,-520.11,0.00014999,2]
[426392875,1782341443000,-520.11,0.00014999,2]
[426392896,1782341443000,-500.0,0.00014999,2]
[426392909,1782341443000,-500.0,0.00014999,2]
[426392897,1782341443000,-1857.37,0.00014999,2]
[426392929,1782341443000,-2327.39,0.00014999,2]
[426392924,1782341443000,-2327.39,0.00014999,2]
[426392930,1782341443000,-2327.39,0.00014999,2]
[426392931,1782341443000,-2327.39,0.00014999,2]
[426392923,1782341443000,-1857.37,0.00014999,2]
[426392926,1782341443000,-2327.39,0.00014999,2]
[426392927,1782341443000,-2327.39,0.00014999,2]
[426392928,1782341443000,-2327.39,0.00014999,2]
[426392921,1782341443000,-1857.37,0.00014999,2]
[426392934,1782341443000,-2327.39,0.00014999,2]
[426392933,1782341443000,-2327.39,0.00014999,2]
[426392936,1782341443000,-2327.39,0.00014999,2]
[426392935,1782341443000,-2327.39,0.00014999,2]
[426392939,1782341443000,-2327.39,0.00014999,2]
[426392937,1782341443000,-2327.39,0.00014999,2]
[426392941,1782341443000,-2370396.8430195,0.00015,2]
[426392940,1782341443000,-2327.43536514,0.00014999,2]
[426392938,1782341443000,-2327.39,0.00014999,2]
[426392932,1782341443000,-2327.39,0.00014999,2]
[426392922,1782341443000,-2327.39,0.00014999,2]
[426392925,1782341443000,-1857.38315319,0.00014999,2]
[426392920,1782341443000,-1857.37,0.00014999,2]
[426392905,1782341443000,-500.0,0.00014999,2]
[426392902,1782341443000,-1857.37,0.00014999,2]
[426392903,1782341443000,-500.0,0.00014999,2]
[426392919,1782341443000,-1857.37,0.00014999,2]
[426392898,1782341443000,-500.0,0.00014999,2]
[426392900,1782341443000,-500.0,0.00014999,2]
[426392901,1782341443000,-500.0,0.00014999,2]
[426392907,1782341443000,-500.0,0.00014999,2]
[426392908,1782341443000,-1857.37,0.00014999,2]
[426392906,1782341443000,-1857.37,0.00014999,2]
[426392899,1782341443000,-1857.37,0.00014999,2]
[426392913,1782341443000,-500.0,0.00014999,2]
[426392914,1782341443000,-1857.37,0.00014999,2]
[426392918,1782341443000,-1857.37,0.00014999,2]
[426392917,1782341443000,-1857.37,0.00014999,2]
[426392915,1782341443000,-213.23061477,0.00014999,2]
[426392904,1782341443000,-1857.37,0.00014999,2]
[426392910,1782341443000,-1857.37,0.00014999,2]
[426392911,1782341443000,-500.0,0.00014999,2]
[426392916,1782341443000,-1857.37,0.00014999,2]
[426392912,1782341443000,-1857.37,0.00014999,2]
[426392942,1782341444000,-315.0,0.00012998,2]
[426392943,1782341444000,-46682.38303847,0.00015,2]
[426392945,1782341444000,-2812.22197702,0.00015,2]
[426392944,1782341444000,-71549.9332583,0.00015,2]
[426392948,1782341444000,-192.01325165,0.000149,2]
[426392949,1782341444000,-1914.73078816,0.00015,2]
[426392946,1782341444000,-606.6000014,0.00015,2]
[426392947,1782341444000,-20947.2958335,0.00015,2]
[426392983,1782341445000,-367.67740177,0.00015,2]
[426392968,1782341445000,-309.0,0.00012998,2]
[426392970,1782341445000,-5552.80096516,0.00015,2]
[426392995,1782341446000,-3087.78221028,0.00015,2]
[426393188,1782341505000,3657.8,0.00030987,30]
[426393189,1782341523000,162.72752717,0.00030137,30]
[426393190,1782341536000,180.94,0.00031506,30]
[426393191,1782341546000,156.0,0.00028711,30]
[426393192,1782341547000,156.0,0.00029711,30]
[426393193,1782341548000,156.0,0.00030711,30]
[426393195,1782341595000,156.0,0.00028711,30]
[426393196,1782341596000,156.0,0.00029711,30]
[426393197,1782341597000,156.0,0.00030711,30]
[426393199,1782341632000,500.0,0.00030136,120]
[426393198,1782341632000,500.0,0.00030136,120]
[426393200,1782341635000,180.92,0.00031506,30]
[426393201,1782341665000,407.0,0.00028711,30]
[426393202,1782341666000,407.0,0.00029711,30]
[426393203,1782341667000,407.0,0.00030711,30]
[426393205,1782341706000,529.0,0.00028711,30]
[426393206,1782341707000,529.0,0.00029711,30]
[426393207,1782341709000,529.0,0.00030711,30]
[426393211,1782341818000,249.0,0.00028711,30]
[426393212,1782341819000,249.0,0.00029711,30]
[426393213,1782341820000,249.0,0.00030711,30]
[426393218,1782341855000,530.44073874,0.0003013,120]
[426393223,1782341870000,154.0,0.00028711,30]
[426393224,1782341871000,160.0,0.00029711,30]
[426393225,1782341910000,388.0,0.00028706,30]
[426393226,1782341911000,388.0,0.00029706,30]
[426393227,1782341912000,388.0,0.00030706,30]
[426393228,1782341980000,157.0,0.00028706,30]
[426393229,1782341982000,157.0,0.00029706,30]
[426393230,1782341983000,157.0,0.00030706,30]
[426393231,1782342004000,265.25,0.000308,30]
[426393237,1782342186000,246.08148249,0.00030493,120]
[426393238,1782342368000,184.66519393,0.00030137,30]
[426393239,1782342376000,184.66519393,0.00030137,30]
[426393246,1782342473000,542.37,0.0003135,30]
[426393247,1782342507000,290.84768044,0.00030137,30]
[426393248,1782342510000,193.89845363,0.00030137,30]
[426393249,1782342518000,179.08,0.00030082,120]
[426393318,1782342578000,464.88,0.00031304,30]
[426393352,1782342631000,-152.0,0.00012638,2]
[426393345,1782342631000,-152.0,0.00012638,2]
[426393356,1782342631000,-317.0,0.00012639,2]
[426393355,1782342631000,-150.0,0.00012638,2]
[426393346,1782342631000,-312.0,0.00012638,2]
[426393340,1782342631000,-166.66,0.00012372,2]
[426393343,1782342631000,-166.66,0.00012627,2]
[426393338,1782342631000,-152.98,0.00012209,2]
[426393344,1782342631000,-309.0,0.00012638,2]
[426393342,1782342631000,-152.98,0.00012616,2]
[426393341,1782342631000,-333.91,0.00012502,2]
[426393337,1782342631000,-837.84,0.00012185,2]
[426393335,1782342631000,-166.66,0.00012117,2]
[426393336,1782342631000,-412.93,0.00012137,2]
[426393331,1782342631000,-304.0,0.00011936,2]
[426393333,1782342631000,-162.49,0.00012108,2]
[426393334,1782342631000,-150.0,0.00012112,2]
[426393332,1782342631000,-696.0,0.00011936,2]
[426393347,1782342631000,-313.0,0.00012638,2]
[426393339,1782342631000,-179.08,0.00012329,2]
[426393353,1782342631000,-313.0,0.00012638,2]
[426393359,1782342631000,-151.0,0.00012639,2]
[426393349,1782342631000,-151.0,0.00012638,2]
[426393370,1782342631000,-310.0,0.00012639,2]
[426393373,1782342631000,-151.0,0.00012639,2]
[426393371,1782342631000,-320.0,0.00012639,2]
[426393372,1782342631000,-309.0,0.00012639,2]
[426393369,1782342631000,-152.0,0.00012639,2]
[426393365,1782342631000,-150.0,0.00012639,2]
[426393364,1782342631000,-315.0,0.00012639,2]
[426393348,1782342631000,-318.0,0.00012638,2]
[426393366,1782342631000,-309.0,0.00012639,2]
[426393363,1782342631000,-311.0,0.00012639,2]
[426393358,1782342631000,-319.0,0.00012639,2]
[426393351,1782342631000,-318.0,0.00012638,2]
[426393362,1782342631000,-152.0,0.00012639,2]
[426393354,1782342631000,-163.81,0.00012638,2]
[426393357,1782342631000,-319.0,0.00012639,2]
[426393350,1782342631000,-315.0,0.00012638,2]
[426393368,1782342631000,-310.0,0.00012639,2]
[426393361,1782342631000,-319.0,0.00012639,2]
[426393360,1782342631000,-312.0,0.00012639,2]
[426393367,1782342631000,-319.0,0.00012639,2]
[426393397,1782342632000,-152.0,0.00012798,2]
[426393382,1782342632000,-2217.8025301,0.00012698,2]
[426393377,1782342632000,-2352.07931871,0.00012698,2]
[426393375,1782342632000,-310.0,0.00012639,2]
[426393395,1782342632000,-6662.37683922,0.00012798,2]
[426393396,1782342632000,-152.0,0.00012798,2]
[426393387,1782342632000,-6326.0395308,0.00012698,2]
[426393392,1782342632000,-470.0400697,0.00012798,2]
[426393394,1782342632000,-3157.52112376,0.00012798,2]
[426393389,1782342632000,-176.84461302,0.00012788,2]
[426393391,1782342632000,-430.96394326,0.00012797,2]
[426393398,1782342632000,-152.0,0.00012798,2]
[426393400,1782342632000,-292.0,0.00012798,2]
[426393402,1782342632000,-152.0,0.00012798,2]
[426393404,1782342632000,-150158.05572626,0.00012798,2]
[426393401,1782342632000,-152.0,0.00012798,2]
[426393399,1782342632000,-152.0,0.00012798,2]
[426393393,1782342632000,-700.30026946,0.00012798,2]
[426393403,1782342632000,-280.0,0.00012798,2]
[426393441,1782342638000,-319.0,0.00013098,2]
[426393442,1782342638000,-151.0,0.00013098,2]
[426393439,1782342638000,-314.0,0.00013098,2]
[426393436,1782342638000,-2000.0,0.00013098,2]
[426393440,1782342638000,-319.0,0.00013098,2]
[426393438,1782342638000,-151.0,0.00013098,2]
[426393443,1782342638000,-317.0,0.00013098,2]
[426393437,1782342638000,-316.0,0.00013098,2]
[426393435,1782342638000,-9819.89796294,0.00013032,2]
[426393444,1782342638000,-314.0,0.00013098,2]
[426393450,1782342638000,-500.0,0.00013129,2]
[426393446,1782342638000,-317.0,0.00013098,2]
[426393448,1782342638000,-313.0,0.00013098,2]
[426393447,1782342638000,-320.0,0.00013098,2]
[426393454,1782342638000,-162.47,0.00013241,2]
[426393452,1782342638000,-470.04006965,0.0001315,2]
[426393456,1782342638000,-166.66,0.00013392,2]
[426393453,1782342638000,-10895.92137952,0.00013187,2]
[426393449,1782342638000,-151.0,0.00013098,2]
[426393451,1782342638000,-166.66,0.00013137,2]
[426393434,1782342638000,-152.98,0.00013023,2]
[426393445,1782342638000,-152.0,0.00013098,2]
[426393433,1782342638000,-10895.92137952,0.00012943,2]
[426393412,1782342638000,-152.0,0.00012798,2]
[426393425,1782342638000,-152.0,0.00012898,2]
[426393457,1782342638000,-238.70297,0.00013424,2]
[426393409,1782342638000,-805.567938,0.00012798,2]
[426393410,1782342638000,-1349036.37633574,0.00012798,2]
[426393411,1782342638000,-2500.0,0.00012798,2]
[426393416,1782342638000,-152.0,0.00012798,2]
[426393413,1782342638000,-152.0,0.00012798,2]
[426393414,1782342638000,-152.0,0.00012798,2]
[426393419,1782342638000,-1000.0,0.000128,4]
[426393415,1782342638000,-152.0,0.00012798,2]
[426393418,1782342638000,-152.0,0.00012798,2]
[426393430,1782342638000,-240.0,0.00012898,2]
[426393417,1782342638000,-152.0,0.00012798,2]
[426393422,1782342638000,-166.66,0.00012882,2]
[426393432,1782342638000,-216.42324807,0.00012914,2]
[426393428,1782342638000,-152.0,0.00012898,2]
[426393424,1782342638000,-152.0,0.00012898,2]
[426393427,1782342638000,-152.0,0.00012898,2]
[426393426,1782342638000,-152.0,0.00012898,2]
[426393420,1782342638000,-2563.788,0.00012882,2]
[426393429,1782342638000,-152.0,0.00012898,2]
[426393431,1782342638000,-2100.0,0.000129,4]
[426393423,1782342638000,-33326.4581,0.00012898,2]
[426393421,1782342638000,-159.277,0.00012882,2]
[426393455,1782342638000,-9819.89796294,0.00013265,2]
[426393504,1782342638000,-150.0,0.00013617,2]
[426393459,1782342638000,-477.910729,0.00013424,2]
[426393484,1782342638000,-150.0,0.00013524,2]
[426393485,1782342638000,-150.0,0.00013525,2]
[426393495,1782342638000,-150.0,0.00013576,2]
[426393487,1782342638000,-150.0,0.00013539,2]
[426393489,1782342638000,-150.0,0.00013551,2]
[426393491,1782342638000,-150.0,0.00013556,2]
[426393490,1782342638000,-150.0,0.00013556,2]
[426393493,1782342638000,-150.0,0.00013562,2]
[426393494,1782342638000,-150.0,0.00013573,2]
[426393492,1782342638000,-150.0,0.00013561,2]
[426393486,1782342638000,-150.0,0.00013539,2]
[426393498,1782342638000,-150.0,0.0001359,2]
[426393497,1782342638000,-150.0,0.00013583,2]
[426393505,1782342638000,-150.0,0.00013624,2]
[426393501,1782342638000,-150.0,0.00013599,2]
[426393507,1782342638000,-150.0,0.00013634,2]
[426393506,1782342638000,-150.0,0.00013624,2]
[426393503,1782342638000,-150.0,0.00013615,2]
[426393502,1782342638000,-150.0,0.00013607,2]
[426393500,1782342638000,-150.0,0.00013597,2]
[426393508,1782342638000,-150.0,0.00013636,2]
[426393458,1782342638000,-218.373157,0.00013424,2]
[426393499,1782342638000,-150.0,0.00013591,2]
[426393488,1782342638000,-150.0,0.00013543,2]
[426393496,1782342638000,-150.0,0.0001358,2]
[426393482,1782342638000,-150.0,0.0001352,2]
[426393460,1782342638000,-463.357383,0.00013424,2]
[426393481,1782342638000,-150.0,0.00013506,2]
[426393470,1782342638000,-150.0,0.00013488,2]
[426393461,1782342638000,-185.175638,0.00013424,2]
[426393462,1782342638000,-567.206608,0.00013424,2]
[426393468,1782342638000,-226.66136262,0.00013488,2]
[426393465,1782342638000,-150.0,0.00013488,2]
[426393466,1782342638000,-150.0,0.00013488,2]
[426393464,1782342638000,-10895.92137952,0.00013432,2]
[426393463,1782342638000,-152.98,0.00013429,2]
[426393467,1782342638000,-150.0,0.00013488,2]
[426393469,1782342638000,-150.0,0.00013488,2]
[426393471,1782342638000,-150.0,0.00013488,2]
[426393478,1782342638000,-9819.89796294,0.00013499,2]
[426393474,1782342638000,-150.0,0.00013488,2]
[426393476,1782342638000,-150.0,0.00013488,2]
[426393475,1782342638000,-150.0,0.00013488,2]
[426393477,1782342638000,-150.0,0.00013488,2]
[426393473,1782342638000,-150.0,0.00013488,2]
[426393479,1782342638000,-470.04006965,0.00013501,2]
[426393483,1782342638000,-150.0,0.00013522,2]
[426393472,1782342638000,-150.0,0.00013488,2]
[426393480,1782342638000,-150.0,0.00013505,2]
[426393550,1782342639000,-500.0,0.00013698,2]
[426393548,1782342639000,-500.0,0.00013698,2]
[426393555,1782342639000,-500.0,0.00013698,2]
[426393547,1782342639000,-500.0,0.00013698,2]
[426393546,1782342639000,-500.0,0.00013698,2]
[426393536,1782342639000,-500.0,0.00013698,2]
[426393537,1782342639000,-500.0,0.00013698,2]
[426393539,1782342639000,-500.0,0.00013698,2]
[426393542,1782342639000,-500.0,0.00013698,2]
[426393541,1782342639000,-500.0,0.00013698,2]
[426393549,1782342639000,-500.0,0.00013698,2]
[426393544,1782342639000,-500.0,0.00013698,2]
[426393545,1782342639000,-500.0,0.00013698,2]
[426393559,1782342639000,-500.0,0.00013698,2]
[426393553,1782342639000,-500.0,0.00013698,2]
[426393554,1782342639000,-500.0,0.00013698,2]
[426393552,1782342639000,-500.0,0.00013698,2]
[426393556,1782342639000,-500.0,0.00013698,2]
[426393557,1782342639000,-500.0,0.00013698,2]
[426393558,1782342639000,-500.0,0.00013698,2]
[426393560,1782342639000,-500.0,0.00013698,2]
[426393561,1782342639000,-500.0,0.00013698,2]
[426393564,1782342639000,-562.9,0.00013698,2]
[426393562,1782342639000,-500.0,0.00013698,2]
[426393566,1782342639000,-562.9,0.00013698,2]
[426393538,1782342639000,-500.0,0.00013698,2]
[426393551,1782342639000,-500.0,0.00013698,2]
[426393540,1782342639000,-500.0,0.00013698,2]
[426393518,1782342639000,-150.0,0.00013675,2]
[426393532,1782342639000,-500.0,0.00013698,2]
[426393563,1782342639000,-562.9,0.00013698,2]
[426393509,1782342639000,-150.0,0.00013641,2]
[426393520,1782342639000,-150.0,0.00013679,2]
[426393517,1782342639000,-150.0,0.00013673,2]
[426393519,1782342639000,-10895.92137952,0.00013677,2]
[426393510,1782342639000,-150.0,0.00013643,2]
[426393511,1782342639000,-150.0,0.00013647,2]
[426393512,1782342639000,-412.93,0.00013654,2]
[426393515,1782342639000,-150.0,0.00013664,2]
[426393513,1782342639000,-150.0,0.00013654,2]
[426393516,1782342639000,-150.0,0.0001367,2]
[426393514,1782342639000,-150.0,0.00013658,2]
[426393535,1782342639000,-500.0,0.00013698,2]
[426393521,1782342639000,-150.0,0.00013691,2]
[426393523,1782342639000,-150.0,0.00013692,2]
[426393526,1782342639000,-500.0,0.00013698,2]
[426393528,1782342639000,-500.0,0.00013698,2]
[426393524,1782342639000,-150.0,0.00013694,2]
[426393530,1782342639000,-500.0,0.00013698,2]
[426393525,1782342639000,-500.0,0.00013698,2]
[426393531,1782342639000,-500.0,0.00013698,2]
[426393529,1782342639000,-500.0,0.00013698,2]
[426393527,1782342639000,-500.0,0.00013698,2]
[426393533,1782342639000,-500.0,0.00013698,2]
[426393543,1782342639000,-500.0,0.00013698,2]
[426393534,1782342639000,-500.0,0.00013698,2]
[426393522,1782342639000,-150.0,0.00013692,2]
[426393565,1782342639000,-562.9,0.00013698,2]
[426393599,1782342639000,-500.0,0.00013698,2]
[426393569,1782342639000,-562.9,0.00013698,2]
[426393603,1782342639000,-500.0,0.00013698,2]
[426393602,1782342639000,-500.0,0.00013698,2]
[426393604,1782342639000,-551.62922069,0.00013698,2]
[426393605,1782342639000,-520.11,0.00013698,2]
[426393606,1782342639000,-520.11,0.00013698,2]
[426393608,1782342639000,-520.11,0.00013698,2]
[426393609,1782342639000,-520.11,0.00013698,2]
[426393607,1782342639000,-520.11,0.00013698,2]
[426393611,1782342639000,-520.11,0.00013698,2]
[426393610,1782342639000,-520.11,0.00013698,2]
[426393614,1782342639000,-500.0,0.00013698,2]
[426393612,1782342639000,-500.0,0.00013698,2]
[426393596,1782342639000,-500.0,0.00013698,2]
[426393615,1782342639000,-500.0,0.00013698,2]
[426393628,1782342639000,-500.0,0.00013698,2]
[426393617,1782342639000,-600.58062303,0.00013698,2]
[426393618,1782342639000,-500.0,0.00013698,2]
[426393626,1782342639000,-500.0,0.00013698,2]
[426393620,1782342639000,-500.0,0.00013698,2]
[426393623,1782342639000,-500.0,0.00013698,2]
[426393624,1782342639000,-500.0,0.00013698,2]
[426393625,1782342639000,-500.0,0.00013698,2]
[426393622,1782342639000,-500.0,0.00013698,2]
[426393621,1782342639000,-500.0,0.00013698,2]
[426393627,1782342639000,-500.0,0.00013698,2]
[426393616,1782342639000,-500.0,0.00013698,2]
[426393613,1782342639000,-500.0,0.00013698,2]
[426393600,1782342639000,-500.0,0.00013698,2]
[426393567,1782342639000,-562.9,0.00013698,2]
[426393597,1782342639000,-500.0,0.00013698,2]
[426393571,1782342639000,-500.0,0.00013698,2]
[426393573,1782342639000,-500.0,0.00013698,2]
[426393576,1782342639000,-500.0,0.00013698,2]
[426393575,1782342639000,-500.0,0.00013698,2]
[426393578,1782342639000,-500.0,0.00013698,2]
[426393570,1782342639000,-500.0,0.00013698,2]
[426393577,1782342639000,-500.0,0.00013698,2]
[426393595,1782342639000,-500.0,0.00013698,2]
[426393574,1782342639000,-500.0,0.00013698,2]
[426393568,1782342639000,-562.9,0.00013698,2]
[426393580,1782342639000,-500.0,0.00013698,2]
[426393579,1782342639000,-500.0,0.00013698,2]
[426393590,1782342639000,-500.0,0.00013698,2]
[426393572,1782342639000,-500.0,0.00013698,2]
[426393582,1782342639000,-500.0,0.00013698,2]
[426393581,1782342639000,-500.0,0.00013698,2]
[426393601,1782342639000,-500.0,0.00013698,2]
[426393598,1782342639000,-500.0,0.00013698,2]
[426393591,1782342639000,-500.0,0.00013698,2]
[426393593,1782342639000,-500.0,0.00013698,2]
[426393589,1782342639000,-500.0,0.00013698,2]
[426393619,1782342639000,-500.0,0.00013698,2]
[426393588,1782342639000,-500.0,0.00013698,2]
[426393584,1782342639000,-500.0,0.00013698,2]
[426393585,1782342639000,-500.0,0.00013698,2]
[426393587,1782342639000,-500.0,0.00013698,2]
[426393583,1782342639000,-500.0,0.00013698,2]
[426393586,1782342639000,-207.02,0.00013698,2]
[426393673,1782342640000,-500.0,0.00013698,2]
[426393670,1782342640000,-500.0,0.00013698,2]
[426393668,1782342640000,-500.0,0.00013698,2]
[426393665,1782342640000,-500.0,0.00013698,2]
[426393667,1782342640000,-500.0,0.00013698,2]
[426393656,1782342640000,-500.0,0.00013698,2]
[426393661,1782342640000,-500.0,0.00013698,2]
[426393664,1782342640000,-500.0,0.00013698,2]
[426393658,1782342640000,-500.0,0.00013698,2]
[426393654,1782342640000,-500.0,0.00013698,2]
[426393662,1782342640000,-500.0,0.00013698,2]
[426393674,1782342640000,-504.07105771,0.00013698,2]
[426393687,1782342640000,-500.0,0.00013698,2]
[426393666,1782342640000,-500.0,0.00013698,2]
[426393669,1782342640000,-500.0,0.00013698,2]
[426393671,1782342640000,-500.0,0.00013698,2]
[426393672,1782342640000,-518.89469315,0.00013698,2]
[426393676,1782342640000,-500.0,0.00013698,2]
[426393678,1782342640000,-500.0,0.00013698,2]
[426393689,1782342640000,-500.0,0.00013698,2]
[426393688,1782342640000,-500.0,0.00013698,2]
[426393677,1782342640000,-500.0,0.00013698,2]
[426393679,1782342640000,-500.0,0.00013698,2]
[426393680,1782342640000,-500.0,0.00013698,2]
[426393681,1782342640000,-500.0,0.00013698,2]
[426393657,1782342640000,-500.0,0.00013698,2]
[426393675,1782342640000,-500.0,0.00013698,2]
[426393655,1782342640000,-500.0,0.00013698,2]
[426393643,1782342640000,-500.0,0.00013698,2]
[426393652,1782342640000,-500.0,0.00013698,2]
[426393683,1782342640000,-500.0,0.00013698,2]
[426393630,1782342640000,-500.0,0.00013698,2]
[426393631,1782342640000,-503.63672194,0.00013698,2]
[426393629,1782342640000,-500.0,0.00013698,2]
[426393634,1782342640000,-500.0,0.00013698,2]
[426393639,1782342640000,-500.0,0.00013698,2]
[426393632,1782342640000,-500.0,0.00013698,2]
[426393633,1782342640000,-500.0,0.00013698,2]
[426393636,1782342640000,-500.0,0.00013698,2]
[426393635,1782342640000,-500.0,0.00013698,2]
[426393637,1782342640000,-500.0,0.00013698,2]
[426393638,1782342640000,-500.0,0.00013698,2]
[426393660,1782342640000,-500.0,0.00013698,2]
[426393640,1782342640000,-500.0,0.00013698,2]
[426393651,1782342640000,-500.0,0.00013698,2]
[426393644,1782342640000,-542.12,0.00013698,2]
[426393642,1782342640000,-500.0,0.00013698,2]
[426393645,1782342640000,-542.12,0.00013698,2]
[426393646,1782342640000,-542.12,0.00013698,2]
[426393650,1782342640000,-500.0,0.00013698,2]
[426393649,1782342640000,-542.12,0.00013698,2]
[426393648,1782342640000,-542.12,0.00013698,2]
[426393647,1782342640000,-542.12,0.00013698,2]
[426393653,1782342640000,-500.0,0.00013698,2]
[426393659,1782342640000,-500.0,0.00013698,2]
[426393663,1782342640000,-500.0,0.00013698,2]
[426393641,1782342640000,-500.0,0.00013698,2]
[426393686,1782342640000,-500.0,0.00013698,2]
[426393682,1782342640000,-500.0,0.00013698,2]
[426393749,1782342640000,-150.0,0.00013787,2]
[426393728,1782342640000,-176.01433661,0.00013732,2]
[426393723,1782342640000,-150.0,0.00013711,2]
[426393720,1782342640000,-150.0,0.00013707,2]
[426393718,1782342640000,-315.0,0.00013699,2]
[426393727,1782342640000,-500.0,0.00013732,2]
[426393733,1782342640000,-2327.39,0.00013732,2]
[426393740,1782342640000,-150.0,0.00013747,2]
[426393731,1782342640000,-500.0,0.00013732,2]
[426393729,1782342640000,-542.12,0.00013732,2]
[426393730,1782342640000,-500.0,0.00013732,2]
[426393732,1782342640000,-1857.37,0.00013732,2]
[426393734,1782342640000,-9819.89796294,0.00013732,2]
[426393737,1782342640000,-150.0,0.00013743,2]
[426393738,1782342640000,-150.0,0.00013744,2]
[426393739,1782342640000,-150.0,0.00013746,2]
[426393736,1782342640000,-150.0,0.00013743,2]
[426393741,1782342640000,-150.0,0.00013752,2]
[426393742,1782342640000,-150.0,0.0001376,2]
[426393743,1782342640000,-150.0,0.0001376,2]
[426393745,1782342640000,-150.0,0.00013775,2]
[426393751,1782342640000,-150.0,0.00013798,2]
[426393744,1782342640000,-150.0,0.00013765,2]
[426393746,1782342640000,-150.0,0.00013777,2]
[426393747,1782342640000,-150.0,0.0001378,2]
[426393750,1782342640000,-150.0,0.00013794,2]
[426393748,1782342640000,-150.0,0.00013784,2]
[426393684,1782342640000,-500.0,0.00013698,2]
[426393721,1782342640000,-150.0,0.00013709,2]
[426393726,1782342640000,-500.0,0.00013732,2]
[426393735,1782342640000,-255.0,0.00013737,2]
[426393722,1782342640000,-150.0,0.0001371,2]
[426393724,1782342640000,-150.0,0.00013726,2]
[426393690,1782342640000,-500.0,0.00013698,2]
[426393694,1782342640000,-1857.37,0.00013698,2]
[426393696,1782342640000,-1857.37,0.00013698,2]
[426393692,1782342640000,-500.0,0.00013698,2]
[426393697,1782342640000,-1857.37,0.00013698,2]
[426393693,1782342640000,-626.51114016,0.00013698,2]
[426393691,1782342640000,-500.0,0.00013698,2]
[426393695,1782342640000,-1857.37,0.00013698,2]
[426393700,1782342640000,-2327.39,0.00013698,2]
[426393699,1782342640000,-1857.37,0.00013698,2]
[426393698,1782342640000,-1857.37,0.00013698,2]
[426393701,1782342640000,-2327.39,0.00013698,2]
[426393704,1782342640000,-2327.39,0.00013698,2]
[426393685,1782342640000,-500.0,0.00013698,2]
[426393714,1782342640000,-213.64,0.00013699,2]
[426393716,1782342640000,-213.64,0.00013699,2]